bitfinex/quotes_SOLUSD_20260119
["timestamp","ask_amount","ask_price","bid_price","bid_amount"]
[1768792945875,3.81303881,133.91,133.89,0.2]
[1768792946454,3.81303881,133.92,133.89,0.2]
[1768792946651,3.81303881,133.92,133.89,7.66874604]
[1768792946880,3.78303246,133.98,133.91,4.12511479]
[1768792947080,6.78366766,133.98,133.93,4.12511479]
[1768792947377,6.78366766,133.97,133.93,4.12511479]
[1768792947560,3.0006352,133.94,133.91,4.12511479]
[1768792947765,6.78366766,133.95,133.91,11.59247474]
[1768792948961,3.0006352,133.94,133.91,11.59247474]
[1768792949194,6.78366766,133.94,133.9,4.12511479]
[1768792949379,3.0006352,133.93,133.9,4.12511479]
[1768792949556,6.78366766,133.92,133.89,4.32511479]
[1768792951053,6.78366766,133.92,133.89,0.2]
[1768792951480,6.78366766,133.92,133.89,4.32511479]
[1768792951663,14.2509445,133.92,133.89,4.32511479]
[1768792952682,3.0006352,133.91,133.89,0.2]
[1768792952888,3.78303246,133.89,133.87,0.2]
[1768792953077,6.78366766,133.89,133.87,0.2]
[1768792953387,6.78366766,133.89,133.87,1e-08]
[1768792953565,3.0006352,133.88,133.87,1e-08]
[1768792954175,14.25265962,133.89,133.87,1e-08]
[1768792954567,6.78366766,133.88,133.86,0.2]
[1768792954762,3.0006352,133.87,133.86,0.2]
[1768792955679,3.0006352,133.87,133.85,0.2]
[1768792957567,11.25322919,133.87,133.85,0.2]
[1768792957767,14.25386439,133.87,133.85,0.2]
[1768792958186,11.25322919,133.87,133.85,0.2]
[1768792958359,3.78303246,133.87,133.85,0.2]
[1768792958788,14.2532227,133.88,133.85,0.2]
[1768792960968,4.21703757,133.94,133.88,4.32346296]
[1768792961297,4.21703757,133.92,133.89,4.32346296]
[1768792961885,7.21767277,133.91,133.88,4.32346296]
[1768792962086,11.68496281,133.91,133.88,4.32346296]
[1768792962585,4.21703757,133.9,133.86,4.32346296]
[1768792962763,7.21767277,133.89,133.85,11.99434298]
[1768792962962,7.21767277,133.89,133.86,4.32346296]
[1768792963367,3.0006352,133.89,133.86,4.32346296]
[1768792963787,14.68636959,133.9,133.86,4.32346296]
[1768792964396,4.21703757,133.89,133.86,4.32346296]
[1768792964873,14.68636959,133.9,133.86,4.32346296]
[1768792965077,4.21703757,133.89,133.86,4.32346296]
[1768792965475,7.21767277,133.89,133.86,4.32346296]
[1768792965894,4.21703757,133.88,133.85,0.2]
[1768792966079,3.0006352,133.87,133.85,0.2]
[1768792966891,4.21703757,133.88,133.84,0.2]
[1768792966892,14.68816432,133.86,133.84,0.2]
[1768792967075,3.0006352,133.85,133.84,0.2]
[1768792967472,3.0006352,133.85,133.82,4.52346296]
[1768792967687,14.68816432,133.86,133.82,4.52346296]
[1768792968301,11.68752912,133.86,133.82,7.52409816]
[1768792968475,11.68752912,133.86,133.82,3.2006352]
[1768792968795,14.68816432,133.86,133.82,4.52346296]
[1768792969201,4.21703757,133.84,133.82,0.2]
[1768792970013,7.21767277,133.84,133.82,0.2]
[1768792970185,7.47216618,133.83,133.82,0.2]
[1768792970388,14.68983895,133.83,133.79,4.32346296]
[1768792970693,7.21767277,133.82,133.79,4.32346296]
[1768792970989,7.21767277,133.8,133.77,0.2]
[1768792971198,3.0006352,133.81,133.77,4.52346296]
[1768792972179,7.47384155,133.8,133.77,4.52346296]
[1768792973094,4.26938299,133.79,133.77,0.2]
[1768792974380,14.74385974,133.8,133.77,0.2]
[1768792975279,7.27001819,133.78,133.76,0.2]
[1768792975891,7.47445575,133.79,133.76,4.57678733]
[1768792976205,5.34408856,133.84,133.76,4.57678733]
[1768792976395,4.26938299,133.86,133.82,4.37678733]
[1768792976602,4.26938299,133.84,133.77,26.16416523]
[1768792976795,7.27001819,133.83,133.77,7.47537104]
[1768792976992,7.27001819,133.83,133.78,3.0006352]
[1768792977190,7.27001819,133.83,133.77,7.47537104]
[1768792977381,7.47272455,133.82,133.78,3.0006352]
[1768792977791,11.7419163,133.83,133.78,3.0006352]
[1768792978691,11.7419163,133.83,133.79,4.37678733]
[1768792978886,4.26938299,133.82,133.78,3.0006352]
[1768792979097,7.27001819,133.8,133.76,4.57678733]
[1768792979300,7.27001819,133.79,133.76,4.57678733]
[1768792979503,7.27001819,133.79,133.76,0.2]
[1768792980210,4.26938299,133.79,133.76,0.2]
[1768792980391,4.26938299,133.78,133.76,0.2]
[1768792980586,14.74457665,133.79,133.76,0.2]
[1768792980986,11.74394145,133.79,133.76,0.2]
[1768792981184,14.74457665,133.79,133.76,0.2]
[1768792981388,10.47563974,133.78,133.76,0.2]
[1768792981908,7.47500454,133.78,133.76,0.2]
[1768792982205,10.47563974,133.78,133.76,0.2]
[1768792982506,7.47500454,133.78,133.76,0.2]
[1768792982809,3.0006352,133.77,133.76,1e-08]
[1768792983297,3.0006352,133.79,133.76,4.37678734]
[1768792983502,20.64938299,133.79,133.76,4.37678734]
[1768792984098,23.65001819,133.79,133.76,4.37678734]
[1768792984513,3.0006352,133.78,133.76,4.37678734]
[1768792984699,28.12424642,133.79,133.76,4.37678734]
[1768792984900,31.12488162,133.79,133.76,4.37678734]
[1768792985411,31.12488162,133.79,133.76,1e-08]
[1768792986111,3.0006352,133.78,133.76,1e-08]
[1768792986491,128.53500607,133.8,133.76,4.37678734]
[1768792986815,132.80438906,133.8,133.76,4.37678734]
[1768792987300,3.0006352,133.79,133.76,4.37678734]
[1768792988913,129.80375386,133.8,133.76,4.37678734]
[1768792989087,10.47526309,133.79,133.76,4.37678734]
[1768792989292,10.47526309,133.79,133.76,1e-08]
[1768792989293,14.74464608,133.79,133.76,1e-08]
[1768792989592,118.06034656,133.8,133.77,4.37678733]
[1768792989593,101.68034656,133.8,133.77,4.37678733]
[1768792989796,4.26938299,133.82,133.78,4.37678733]
[1768792990198,7.27001819,133.82,133.78,4.37678733]
[1768792990808,14.74309047,133.82,133.78,4.37678733]
[1768792991207,11.74245527,133.82,133.78,4.37678733]
[1768792991615,7.47229833,133.83,133.79,4.37678733]
[1768792991815,7.27001819,133.82,133.78,4.37678733]
[1768792993312,7.27001819,133.82,133.76,1e-08]
[1768792993313,4.26938299,133.78,133.76,1e-08]
[1768792993500,4.26938299,133.79,133.76,1e-08]
[1768792993707,4.26938299,133.79,133.76,4.37678734]
[1768792994048,4.26938299,133.79,133.76,11.85285588]
[1768792994325,28.12256284,133.82,133.78,4.37678733]
[1768792994631,31.12237298,133.83,133.79,4.37678733]
[1768792995128,11.74173778,133.83,133.79,4.37678733]
[1768792996012,14.74237298,133.83,133.79,4.37678733]
[1768792998525,3.0006352,133.82,133.79,4.37678733]
[1768792998730,4.26938299,133.82,133.79,4.37678733]
[1768792998938,7.27001819,133.82,133.79,4.37678733]
[1768793000126,7.27001819,133.81,133.78,4.37678733]
[1768793001131,3.0006352,133.81,133.78,4.37678733]
[1768793001316,31.1228654,133.82,133.78,4.37678733]
[1768793001923,7.27001819,133.81,133.76,1e-08]
[1768793002112,7.27001819,133.79,133.76,4.37678734]
[1768793002314,14.74433745,133.8,133.76,4.37678734]
[1768793002710,14.74433745,133.8,133.71,23.20147666]
[1768793002711,4.41363102,133.79,133.71,23.20147666]
[1768793002930,31.5030117,133.8,133.71,23.20147666]
[1768793002931,7.42126271,133.77,133.73,7.47770418]
[1768793003125,20.79363102,133.77,133.73,4.11884146]
[1768793003320,4.41363102,133.74,133.71,27.32031812]
[1768793003527,7.42126271,133.75,133.71,27.32031812]
[1768793003727,3.00763169,133.74,133.71,27.32031812]
[1768793004038,7.42126271,133.73,133.69,4.11884146]
[1768793004208,7.47732157,133.74,133.7,4.11884146]
[1768793004533,3.00763169,133.73,133.7,4.11884146]
[1768793004730,11.89095259,133.74,133.7,4.11884146]
[1768793004912,35.17669568,133.75,133.7,4.11884146]
[1768793005440,7.47681938,133.75,133.71,4.11884146]
[1768793006630,4.41363102,133.76,133.72,4.11884146]
[1768793006943,4.41363102,133.76,133.71,4.11884146]
[1768793007142,11.3198763,133.76,133.71,4.11884146]
[1768793007533,4.41363102,133.76,133.72,4.11884146]
[1768793007845,42.54483848,133.77,133.72,4.11884146]
[1768793007846,28.26967531,133.77,133.73,4.11884146]
[1768793008743,4.41363102,133.77,133.74,4.11884146]
[1768793009069,4.41363102,133.76,133.7,18.69774353]
[1768793009243,11.3198763,133.76,133.7,18.69774353]
[1768793009547,4.41363102,133.76,133.71,6.90624528]
[1768793009726,4.41363102,133.76,133.71,14.38469053]
[1768793010142,4.41363102,133.76,133.71,7.47844525]
[1768793010462,18.79628788,133.76,133.71,6.90624528]
[1768793010661,11.88933344,133.77,133.72,6.90624528]
[1768793010834,7.47570242,133.77,133.73,11.02508674]
[1768793011145,7.47570242,133.77,133.73,4.11884146]
[1768793011320,11.88933344,133.77,133.73,11.02508674]
[1768793011519,11.88933344,133.77,133.73,4.11884146]
[1768793011725,4.41363102,133.77,133.74,4.11884146]
[1768793012031,7.4751049,133.78,133.74,4.11884146]
[1768793012032,35.1749812,133.78,133.74,4.11884146]
[1768793012233,28.26873592,133.78,133.74,4.11884146]
[1768793012437,35.1749812,133.78,133.74,4.11884146]
[1768793012840,35.1749812,133.78,133.74,4.08884147]
[1768793013739,4.41363102,133.77,133.74,4.0588415]
[1768793017541,11.8894622,133.77,133.73,4.11884146]
[1768793017745,4.41363102,133.76,133.73,4.11884146]
[1768793019428,11.88976204,133.76,133.73,4.11884146]
[1768793019630,18.79600732,133.76,133.72,4.41462873]
[1768793020052,4.4608809,133.75,133.71,4.41462873]
[1768793020267,27.74712618,133.75,133.71,4.41462873]
[1768793021448,35.2242076,133.75,133.71,4.41462873]
[1768793023762,28.31796232,133.75,133.71,4.41462873]
[1768793025138,11.93813346,133.74,133.71,4.41462873]
[1768793025539,18.84437874,133.74,133.71,4.41462873]
[1768793026066,11.93813346,133.74,133.71,4.41462873]
[1768793026437,18.84437874,133.74,133.71,4.41462873]
[1768793026637,11.93813346,133.74,133.71,4.41462873]
[1768793031442,4.4608809,133.73,133.7,4.41462873]
[1768793031644,14.94683336,133.73,133.69,4.41462873]
[1768793032244,11.93884708,133.73,133.69,11.8945439]
[1768793034364,11.93884708,133.73,133.69,4.41462873]
[1768793034547,14.94683336,133.73,133.69,4.41462873]
[1768793035058,11.93884708,133.73,133.69,4.41462873]
[1768793035263,11.93884708,133.73,133.7,4.33268484]
[1768793036457,4.4553113,133.71,133.67,11.81347251]
[1768793036643,4.4553113,133.71,133.68,4.33268484]
[1768793037453,4.4553113,133.72,133.69,4.33268484]
[1768793038369,11.93368868,133.72,133.68,11.81311468]
[1768793039090,7.47837738,133.72,133.69,4.33268484]
[1768793039572,11.93368868,133.72,133.69,4.33268484]
[1768793042772,4.4553113,133.71,133.64,18.70626723]
[1768793042959,4.4553113,133.69,133.65,7.48174522]
[1768793043163,7.46329758,133.68,133.64,7.48261799]
[1768793043361,4.4553113,133.67,133.64,7.48261799]
[1768793043551,4.4553113,133.67,133.62,7.58372613]
[1768793043756,4.4553113,133.67,133.62,3.10798628]
[1768793044478,4.4553113,133.67,133.63,7.48333343]
[1768793044879,4.4553113,133.67,133.63,11.81601827]
[1768793045177,11.93649043,133.67,133.63,11.81601827]
[1768793045358,4.4553113,133.67,133.63,11.81601827]
[1768793045560,4.4553113,133.67,133.63,14.82400455]
[1768793045758,4.4553113,133.66,133.62,7.58373716]
[1768793046065,4.4553113,133.66,133.62,4.43268484]
[1768793046263,4.4553113,133.66,133.62,7.44067112]
[1768793046464,4.4553113,133.66,133.62,4.43268484]
[1768793046875,11.93727829,133.66,133.62,4.43268484]
[1768793047679,14.94526457,133.66,133.62,4.43268484]
[1768793048060,4.4553113,133.63,133.58,28.19830361]
[1768793048257,4.4553113,133.64,133.6,4.33268484]
[1768793048874,4.4553113,133.64,133.6,7.34067112]
[1768793049087,4.4553113,133.65,133.61,7.34067112]
[1768793049283,4.4553113,133.65,133.62,7.34067112]
[1768793050081,4.4553113,133.65,133.62,4.33268484]
[1768793050379,11.93704904,133.66,133.62,4.33268484]
[1768793050581,4.4553113,133.66,133.63,3.00798628]
[1768793050759,4.4553113,133.66,133.63,4.33268484]
[1768793050964,11.93625469,133.68,133.63,4.33268484]
[1768793051283,11.93625469,133.68,133.64,3.00798628]
[1768793051576,4.4553113,133.67,133.63,7.34067112]
[1768793051776,4.4553113,133.67,133.63,4.33268484]
[1768793051975,4.4553113,133.67,133.63,7.34067112]
[1768793052788,4.4553113,133.67,133.63,4.33268484]
[1768793052962,4.4553113,133.67,133.63,7.34067112]
[1768793053163,4.4553113,133.67,133.63,14.8240172]
[1768793053378,4.4553113,133.67,133.64,4.33268484]
[1768793053977,4.4553113,133.68,133.64,7.34067112]
[1768793054280,4.4553113,133.68,133.65,4.33268484]
[1768793054479,4.4553113,133.69,133.66,4.33268484]
[1768793054872,4.4553113,133.69,133.65,7.34067112]
[1768793055073,4.4553113,133.68,133.65,7.34067112]
[1768793055985,11.93486613,133.7,133.67,4.33268484]
[1768793056184,4.4553113,133.69,133.66,7.34067112]
[1768793056394,4.4553113,133.69,133.65,7.34067112]
[1768793057784,4.4553113,133.69,133.66,3.00798628]
[1768793057984,7.47961885,133.7,133.66,7.34067112]
[1768793058291,11.93493015,133.7,133.66,7.34067112]
[1768793058478,11.93493015,133.7,133.66,4.33268484]
[1768793058671,4.4553113,133.69,133.66,7.34067112]
[1768793059583,7.47961885,133.7,133.66,7.34067112]
[1768793059760,4.4553113,133.7,133.68,3.00798628]
[1768793060786,4.4553113,133.71,133.68,3.00798628]
[1768793061390,11.93448336,133.71,133.68,3.00798628]
[1768793062263,11.93448336,133.71,133.67,3.00798628]
[1768793062982,11.93448336,133.71,133.68,3.00880002]
[1768793063866,11.93448336,133.71,133.68,7.10451983]
[1768793064580,11.93448336,133.71,133.69,3.00880002]
[1768793064581,4.4553113,133.71,133.69,3.00880002]
[1768793064759,7.47837787,133.72,133.69,3.00880002]
[1768793064760,11.54484923,133.72,133.69,3.00880002]
[1768793064959,4.50316352,133.71,133.69,3.00880002]
[1768793065179,11.54484923,133.72,133.69,7.10451983]
[1768793065393,8.57048631,133.71,133.68,7.10451983]
[1768793065563,4.06647136,133.71,133.68,7.10451983]
[1768793066169,4.06647136,133.71,133.68,14.58496937]
[1768793066374,11.54484923,133.72,133.69,7.10451983]
[1768793066791,4.06647136,133.72,133.69,7.10451983]
[1768793067292,4.06647136,133.72,133.69,4.09571981]
[1768793067589,4.06647136,133.72,133.69,7.10451983]
[1768793067790,11.54444103,133.73,133.69,7.10451983]
[1768793067971,11.54444103,133.73,133.7,4.09571981]
[1768793068169,4.06647136,133.72,133.69,7.10451983]
[1768793069071,4.06647136,133.72,133.69,4.09571981]
[1768793070771,4.06647136,133.72,133.68,4.09571981]
[1768793070772,4.06647136,133.71,133.68,4.09571981]
[1768793073593,4.06647136,133.7,133.66,27.95716194]
[1768793073794,4.06647136,133.69,133.66,7.48144213]
[1768793074105,4.06647136,133.68,133.65,7.48221948]
[1768793075598,4.06647136,133.68,133.65,11.57793929]
[1768793075802,11.54613381,133.7,133.66,4.09571981]
[1768793076295,11.54613381,133.7,133.66,7.10451983]
[1768793076999,4.06647136,133.69,133.66,4.09571981]
[1768793077179,4.06647136,133.69,133.66,7.10451983]
[1768793077377,11.54613381,133.7,133.66,7.10451983]
[1768793080899,11.54613381,133.7,133.67,4.46616626]
[1768793081400,11.54613381,133.7,133.66,14.95660598]
[1768793081900,11.54613381,133.7,133.66,11.94780596]
[1768793082099,11.54613381,133.7,133.66,14.95660598]
[1768793082302,4.06647136,133.7,133.67,4.46616626]
[1768793082496,7.47906784,133.71,133.67,7.47496628]
[1768793082704,113.25967876,133.72,133.68,4.46616626]
[1768793082890,4.51350492,133.71,133.68,4.46616626]
[1768793083091,4.10077454,133.71,133.68,4.46616626]
[1768793084098,4.10077454,133.7,133.67,14.95575116]
[1768793086401,4.10077454,133.7,133.67,4.46616626]
[1768793086610,4.10077454,133.7,133.67,7.47496628]
[1768793088204,7.47951857,133.7,133.66,10.48994659]
[1768793088511,4.10077454,133.69,133.65,28.3281916]
[1768793089688,4.10077454,133.69,133.65,31.33699162]
[1768793089884,4.10077454,133.69,133.66,7.47496628]
[1768793090290,4.10077454,133.7,133.66,7.47496628]
[1768793091309,4.10077454,133.7,133.67,7.47496628]
[1768793093012,11.61731249,133.72,133.68,4.43984687]
[1768793093207,4.51869689,133.71,133.7,4.43984687]
[1768793093408,4.13882066,133.73,133.7,7.44864689]
[1768793094297,4.13882066,133.73,133.7,14.9279313]
[1768793094600,4.13882066,133.74,133.7,14.9279313]
[1768793094909,4.13882066,133.74,133.71,3.00880002]
[1768793095108,4.13882066,133.74,133.7,14.9279313]
[1768793095309,4.13882066,133.74,133.68,35.08048553]
[1768793095310,4.13882066,133.73,133.69,11.91967699]
[1768793095614,4.13882066,133.73,133.69,14.92847701]
[1768793095825,4.13882066,133.74,133.7,14.9279067]
[1768793096113,4.13882066,133.74,133.71,4.43984687]
[1768793096290,11.61565266,133.75,133.71,4.43984687]
[1768793096611,11.61565266,133.75,133.71,7.44864689]
[1768793097705,4.13882066,133.76,133.72,7.44864689]
[1768793097909,4.13882066,133.76,133.73,7.44864689]
[1768793098091,4.13882066,133.77,133.74,7.44864689]
[1768793099142,4.13882066,133.77,133.74,4.43984687]
[1768793099336,3.00880002,133.79,133.75,7.44864689]
[1768793099337,4.13882066,133.79,133.75,7.44864689]
[1768793099613,4.13882066,133.78,133.74,11.91697665]
[1768793099795,4.13882066,133.78,133.74,14.92577667]
[1768793100194,4.13882066,133.78,133.75,7.44864689]
[1768793101418,4.13882066,133.78,133.75,4.43984687]
[1768793101590,4.13882066,133.78,133.75,7.44864689]
[1768793101796,4.13882066,133.78,133.75,3.00880002]
[1768793102116,4.13882066,133.78,133.75,10.4854133]
[1768793102321,4.33882066,133.8,133.76,7.44864689]
[1768793102816,4.13882066,133.79,133.76,4.43984687]
[1768793102995,4.13882066,133.79,133.75,11.91646015]
[1768793103201,4.13882066,133.79,133.75,14.92526017]
[1768793103508,7.14762068,133.79,133.74,11.91702221]
[1768793103714,4.13882066,133.77,133.72,7.44864689]
[1768793104012,4.13882066,133.75,133.71,14.92700805]
[1768793104395,4.13882066,133.76,133.72,7.44864689]
[1768793104596,4.13882066,133.77,133.74,4.43984687]
[1768793105527,4.13882066,133.78,133.75,3.00880002]
[1768793106300,4.13882066,133.78,133.75,7.44864689]
[1768793106822,11.61333923,133.79,133.75,4.43984687]
[1768793107124,4.13882066,133.79,133.76,3.00880002]
[1768793107295,7.67392653,133.8,133.75,11.91647913]
[1768793107296,7.67392653,133.8,133.77,7.44864689]
[1768793107504,11.81274719,133.8,133.77,7.4186469]
[1768793107907,0.2,133.8,133.78,3.00880002]
[1768793109012,0.2,133.8,133.78,10.48374592]
[1768793109399,0.2,133.8,133.78,14.92359279]
[1768793109719,11.61118459,133.83,133.79,7.44864689]
[1768793110100,4.13882066,133.83,133.8,4.43984687]
[1768793110302,4.33882066,133.84,133.81,3.00880002]
[1768793110701,4.33882066,133.84,133.81,4.43984687]
[1768793110905,4.13882066,133.83,133.78,7.44864689]
[1768793111426,4.13882066,133.81,133.77,23.82864689]
[1768793111605,4.13882066,133.81,133.77,31.30377488]
[1768793111923,4.13882066,133.81,133.78,4.43984687]
[1768793112106,4.13882066,133.81,133.78,11.91480479]
[1768793112618,4.13882066,133.81,133.78,14.92360481]
[1768793113699,7.47335371,133.81,133.76,16.38]
[1768793113896,7.47335371,133.81,133.75,4.43984687]
[1768793113897,4.13882066,133.8,133.75,4.43984687]
[1768793114111,4.13882066,133.8,133.76,14.92434509]
[1768793114315,4.13882066,133.81,133.77,14.9241191]
[1768793115216,11.61156689,133.82,133.79,4.43984687]
[1768793115424,11.61156689,133.82,133.78,7.47489717]
[1768793115425,11.61156689,133.82,133.78,7.44864689]
[1768793115620,4.13882066,133.81,133.78,7.44864689]
[1768793115828,4.13882066,133.81,133.79,3.00880002]
[1768793116623,4.13882066,133.82,133.79,7.44864689]
[1768793116921,11.61116714,133.83,133.8,3.00880002]
[1768793117117,4.13882066,133.82,133.79,7.44864689]
[1768793117322,4.13882066,133.82,133.79,3.00880002]
[1768793117525,4.13882066,133.82,133.79,7.44864689]
[1768793119438,11.61158636,133.82,133.79,7.44864689]
[1768793119732,11.61158636,133.82,133.79,4.43984687]
[1768793121933,4.13882066,133.82,133.79,7.44864689]
[1768793125028,4.13882066,133.82,133.79,7.44380705]
[1768793125229,4.13882066,133.82,133.79,4.43984687]
[1768793125437,4.13882066,133.82,133.78,11.56908313]
[1768793125742,4.13882066,133.82,133.79,3.00396018]
[1768793127640,4.23275046,133.81,133.78,11.56908313]
[1768793127820,4.23275046,133.81,133.77,14.5736554]
[1768793129840,4.23275046,133.81,133.79,3.00396018]
[1768793130567,4.23275046,133.82,133.79,7.0982029]
[1768793131346,4.23275046,133.82,133.79,4.09424272]
[1768793131532,4.23275046,133.82,133.79,7.0982029]
[1768793132645,11.70566885,133.82,133.79,3.00396018]
[1768793132949,4.23275046,133.81,133.78,14.57297172]
[1768793134034,4.23275046,133.8,133.77,10.47939665]
[1768793134344,4.17275046,133.8,133.77,14.57363937]
[1768793137240,4.23275046,133.81,133.78,3.00396018]
[1768793139234,4.26106544,133.8,133.75,28.19684873]
[1768793139433,4.26106544,133.8,133.76,3.00396018]
[1768793139738,4.26106544,133.79,133.75,31.20080891]
[1768793141053,4.26106544,133.79,133.76,3.00396018]
[1768793141439,11.73546778,133.79,133.76,3.00396018]
[1768793141643,11.67546778,133.79,133.76,3.00396018]
[1768793145462,4.20106544,133.79,133.76,7.34439757]
[1768793146643,4.26106544,133.78,133.75,7.34439757]
[1768793147159,4.26106544,133.78,133.76,3.00396018]
[1768793148051,11.73563535,133.79,133.76,3.00396018]
[1768793148357,11.73513801,133.8,133.77,7.34439757]
[1768793148748,4.26106544,133.79,133.76,11.81639836]
[1768793148950,4.26106544,133.79,133.77,3.00396018]
[1768793149647,4.26106544,133.79,133.75,4.34043739]
[1768793149848,4.26106544,133.8,133.76,7.34439757]
[1768793150640,4.26106544,133.8,133.76,4.34043739]
[1768793150841,4.26106544,133.79,133.76,7.34439757]
[1768793153064,4.40338021,133.78,133.74,14.8620884]
[1768793153565,4.40338021,133.76,133.71,14.86357754]
[1768793154339,4.40338021,133.76,133.71,11.85961736]
[1768793154554,4.40338021,133.75,133.71,7.38508225]
[1768793154747,4.40338021,133.75,133.71,11.8599808]
[1768793154948,4.40338021,133.75,133.71,7.38508225]
[1768793155153,4.40338021,133.75,133.71,4.38112207]
[1768793155365,4.40338021,133.74,133.71,4.38112207]
[1768793155564,4.40338021,133.74,133.71,7.38508225]
[1768793157163,10.48011306,133.76,133.71,11.85995601]
[1768793157346,10.48011306,133.76,133.71,4.38112207]
[1768793157347,3.00396018,133.75,133.71,4.38112207]
[1768793157549,10.48011306,133.76,133.71,7.38508225]
[1768793158154,10.48011306,133.76,133.71,3.00396018]
[1768793158362,3.00396018,133.75,133.7,3.00396018]
[1768793158566,29.17030444,133.76,133.71,3.00396018]
[1768793158744,29.17030444,133.76,133.7,7.38508225]
[1768793159068,4.40338021,133.75,133.7,7.38508225]
[1768793159982,4.40338021,133.74,133.7,7.38508225]
[1768793160144,4.40338021,133.73,133.7,4.38112207]
[1768793162669,4.40338021,133.72,133.69,16.38]
[1768793162854,4.40338021,133.72,133.68,7.38508225]
[1768793163365,4.40338021,133.72,133.69,4.38112207]
[1768793163669,11.88174852,133.72,133.69,7.38508225]
[1768793164773,4.40338021,133.75,133.71,7.38508225]
[1768793164973,11.88001572,133.75,133.72,4.38112207]
[1768793165176,11.88001572,133.75,133.71,7.38508225]
[1768793165348,4.40338021,133.74,133.72,3.00396018]
[1768793165552,11.88001572,133.75,133.72,7.38508225]
[1768793166270,7.47663551,133.75,133.69,42.55988091]
[1768793166574,4.40338021,133.74,133.71,7.38508225]
[1768793167567,11.88001572,133.75,133.72,4.38112207]
[1768793169179,4.40338021,133.75,133.72,4.38112207]
[1768793169476,4.40338021,133.75,133.72,7.38508225]
[1768793170170,4.40338021,133.75,133.72,4.38112207]
[1768793170171,11.88002151,133.75,133.72,4.38112207]
[1768793173681,11.88002151,133.75,133.72,7.38508225]
[1768793174479,11.88002151,133.75,133.72,3.00396018]
[1768793174662,11.88002151,133.75,133.73,4.38112207]
[1768793179781,11.88002151,133.75,133.72,7.38508225]
[1768793181186,11.87945676,133.76,133.73,4.38112207]
[1768793181483,11.87945676,133.76,133.73,7.38508225]
[1768793182483,11.87945676,133.76,133.73,4.38112207]
[1768793182789,11.87945676,133.76,133.73,7.38508225]
[1768793184392,11.87945676,133.76,133.73,4.38112207]
[1768793184683,11.87945676,133.76,133.73,7.38508225]
[1768793186977,11.87945676,133.76,133.73,7.38781858]
[1768793187689,11.97387272,133.76,133.73,4.38112207]
[1768793187993,4.49779617,133.75,133.73,7.38781858]
[1768793188791,4.49779617,133.75,133.73,4.38112207]
[1768793189693,4.49779617,133.75,133.71,11.87735344]
[1768793189890,4.49779617,133.74,133.71,14.88404995]
[1768793190066,4.49779617,133.74,133.7,7.40542183]
[1768793190272,4.49779617,133.74,133.7,11.87780888]
[1768793190481,4.49779617,133.74,133.71,4.39872532]
[1768793192481,4.49779617,133.73,133.7,14.88450539]
[1768793192680,4.49779617,133.73,133.7,7.40542183]
[1768793192873,4.49779617,133.73,133.69,14.88520017]
[1768793195476,4.49779617,133.73,133.69,11.87850366]
[1768793195799,4.49779617,133.73,133.69,14.88520017]
[1768793198197,4.33216918,133.72,133.69,14.88520017]
[1768793198995,11.80957878,133.74,133.7,4.06634985]
[1768793199291,4.33216918,133.73,133.7,4.06634985]
[1768793199884,4.33216918,133.73,133.7,7.07304636]
[1768793200102,4.33216918,133.73,133.71,4.06634985]
[1768793200484,3.00669651,133.75,133.72,4.06634985]
[1768793200485,11.80899677,133.75,133.72,4.06634985]
[1768793200784,4.33216918,133.76,133.73,4.06634985]
[1768793203307,113.48819621,133.77,133.74,4.06634985]
[1768793205103,106.01251574,133.77,133.74,7.07304636]
[1768793205500,4.33216918,133.77,133.75,4.06634985]
[1768793206206,4.33216918,133.78,133.75,4.06634985]
[1768793206705,4.33216918,133.78,133.75,7.07304636]
[1768793208394,4.33216918,133.78,133.75,4.06634985]
[1768793208794,4.33216918,133.78,133.75,7.07304636]
[1768793209191,4.33216918,133.77,133.73,4.06634985]
[1768793209404,4.33216918,133.77,133.74,4.06634985]
[1768793213401,4.16557651,133.79,133.75,4.17663369]
[1768793213587,4.16557651,133.79,133.75,3.00669651]
[1768793213794,4.16557651,133.79,133.76,4.17663369]
[1768793214500,4.16557651,133.79,133.77,4.17663369]
[1768793215118,4.16557651,133.79,133.76,7.1833302]
[1768793215795,11.64006061,133.79,133.76,7.1833302]
[1768793216529,11.64006061,133.79,133.76,4.17663369]
[1768793217825,11.64006061,133.79,133.76,7.1833302]
[1768793218399,4.16557651,133.79,133.76,7.1833302]
[1768793218612,4.16557651,133.79,133.76,14.65923759]
[1768793220235,4.16557651,133.79,133.76,7.1833302]
[1768793220623,11.63999576,133.79,133.76,7.1833302]
[1768793221608,11.63955138,133.8,133.77,4.17663369]
[1768793221815,4.16557651,133.8,133.77,7.1833302]
[1768793222011,4.16557651,133.8,133.78,4.17663369]
[1768793222214,113.31932679,133.81,133.78,7.1833302]
[1768793222523,7.47293059,133.82,133.79,7.1833302]
[1768793222721,11.6385071,133.82,133.79,7.1833302]
[1768793223430,11.6385071,133.82,133.79,4.17663369]
[1768793223604,11.6385071,133.82,133.79,7.1833302]
[1768793225931,7.17227302,133.82,133.77,7.47514922]
[1768793226217,4.16557651,133.82,133.79,4.17663369]
[1768793226425,4.16557651,133.82,133.79,4.14663371]